[Event "TUR-chT Superleague 2018"]
[Site "Ankara"]
[Date "2018.07.25"]
[Round "1"]
[White "Korkmaz, Necmettin"]
[Black "Soysal, Serkan"]
[Result "1-0"]
[ECO "C41"]
[WhiteElo "2056"]
[BlackElo "2406"]
[Annotator "NA"]
[PlyCount "83"]
[EventDate "2018.07.25"]
[EventType "team-tourn"]
[EventCountry "TUR"]
[SourceTitle "playchess.com"]
[Source "ChessBase"]
[SourceQuality "1"]
[TimeControl "40/5400+30:1800+30"]

1. e4 {[%emt 0:00:30]} d6 {[%emt 0:00:30]} 2. d4 {[%emt 0:00:30]} Nf6 {[%emt 0:00:00]} 3. Nc3 {[%emt 0:00:30]} Nbd7 {[%emt 0:00:00]} 4. Nf3 {[%emt 0:01:30]} e5 {[%emt 0:00:00]} 5. Bc4 {[%emt 0:00:30]} Be7 {[%emt 0:00:00]} 6. O-O {[%emt 0:03:30]} O-O {[%emt 0:09:30]} 7. Re1 {[%emt 0:00:30]} c6 {[%emt 0:00:30]} 8. a4 {[%emt 0:00:30]} h6 {[%emt 0:00:00]} 9. h3 {[%emt 0:03:30]} Re8 {[%emt 0:00:00]} 10. Be3 {[%emt 0:03:30]} Bf8 {[%emt 0:02:30]} 11. d5 {[%emt 0:10:30]} c5 {[%emt 0:14:30]} 12. a5 {[%emt 0:03:30]} a6 {[%emt 0:00:30]} 13. Nd2 {[%emt 0:03:30]} g6 {[%emt 0:00:30]} 14. Be2 {[%emt 0:02:30]} Qe7 {[%emt 0:39:30]} 15. Nc4 {[%emt 0:02:30]} Nh7 {[%emt 0:03:30]} 16. Qd2 {[%emt 0:05:30]} h5 {[%emt 0:01:30]} 17. Na4 {[%emt 0:05:30]} h4 {[%emt 0:01:30]} 18. b4 {[%emt 0:08:30]} cxb4 {[%emt 0:03:30]} 19. Qxb4 {[%emt 0:06:30]} f5 {[%emt 0:07:03]} 20. exf5 {[%emt 0:00:30]} gxf5 {[%emt 0:00:30]} 21. Bh5 {[%emt 0:00:30]} Rd8 {[%emt 0:01:31]} 22. Nab6 {[%emt 0:02:30]} Rb8 {[%emt 0:04:37]} 23. Rad1 {[%emt 0:20:57]} Ndf6 {[%emt 0:05:27]} 24. Bf3 {[%emt 0:03:47]} Qg7 {[%emt 0:00:59]} 25. Kh1 {[%emt 0:02:34]} f4 {[%emt 0:01:03]} 26. Bc1 {[%emt 0:00:30]} Bf5 {[%emt 0:00:00]} 27. Qb3 {[%emt 0:00:15]} Qg6 {[%emt 0:00:22]} 28. Rd2 {[%emt 0:03:13]} Ng5 {[%emt 0:00:11]} 29. Bb2 {[%emt 0:00:30]} Nxf3 {[%emt 0:01:55]} 30. gxf3 {[%emt 0:00:24]} Kh7 {[%emt 0:00:43]} 31. Bxe5 {[%emt 0:03:15]} dxe5 {[%emt 0:00:38]} 32. Nxe5 {[%emt 0:00:32]} Qg7 {[%emt 0:01:45]} 33. Rg1 {[%emt 0:00:49]} Qc7 {[%emt 0:00:43]} 34. d6 {[%emt 0:00:46]} Bxd6 {[%emt 0:00:49]} 35. Nf7 {[%emt 0:00:25]} Rg8 {[%emt 0:00:29]} 36. Rxd6 {[%emt 0:02:07]} Rxg1+ {[%emt 0:00:17]} 37. Kxg1 {[%emt 0:00:31]} Rg8+ {[%emt 0:00:34]} 38. Kh2 {[%emt 0:00:17]} Qe7 {[%emt 0:00:52]} 39. Nd5 {[%emt 0:00:50]} Nxd5 {[%emt 0:00:58]} 40. Qxd5 {[%emt 0:00:30]} Bg6 {[%emt 0:00:00]} 41. Ne5 {[%emt 0:06:18]} Qg5 {[%emt 0:10:04]} 42. Qxg8+ {[%emt 0:00:30]} 1-0

[Event "TUR-chT Superleague 2018"]
[Site "Ankara"]
[Date "2018.07.25"]
[Round "1"]
[White "Ozbek, Busra"]
[Black "Can, Isil"]
[Result "1-0"]
[ECO "D04"]
[WhiteElo "1848"]
[BlackElo "1862"]
[Annotator "NA"]
[PlyCount "145"]
[EventDate "2018.07.25"]
[EventType "team-tourn"]
[EventCountry "TUR"]
[SourceTitle "playchess.com"]
[Source "ChessBase"]
[SourceQuality "1"]
[TimeControl "40/5400+30:1800+30"]

1. d4 {[%emt 0:00:30]} d5 {[%emt 0:00:30]} 2. Nf3 {[%emt 0:00:30]} Nf6 {[%emt 0:00:30]} 3. e3 {[%emt 0:00:30]} c5 {[%emt 0:00:00]} 4. b3 {[%emt 0:00:00]} cxd4 {[%emt 0:00:00]} 5. exd4 {[%emt 0:01:00]} Nc6 {[%emt 0:00:30]} 6. Bb2 {[%emt 0:02:30]} g6 {[%emt 0:00:30]} 7. a3 {[%emt 0:02:30]} Bg7 {[%emt 0:00:00]} 8. Bd3 {[%emt 0:00:30]} O-O {[%emt 0:01:00]} 9. O-O {[%emt 0:01:30]} Qc7 {[%emt 0:04:30]} 10. Nbd2 {[%emt 0:02:30]} Nh5 {[%emt 0:02:30]} 11. Re1 {[%emt 0:09:30]} Nf4 {[%emt 0:05:30]} 12. Bf1 {[%emt 0:07:30]} Bg4 {[%emt 0:09:30]} 13. h3 {[%emt 0:05:30]} Be6 {[%emt 0:01:30]} 14. Ne5 {[%emt 0:15:30]} Nxe5 {[%emt 0:10:30]} 15. dxe5 {[%emt 0:00:30]} g5 {[%emt 0:12:30]} 16. Rc1 {[%emt 0:09:30]} Rfd8 {[%emt 0:06:30]} 17. Bd4 {[%emt 0:04:30]} h6 {[%emt 0:10:30]} 18. Qf3 {[%emt 0:05:30]} Qd7 {[%emt 0:06:30]} 19. Qe3 {[%emt 0:07:30]} Ng6 {[%emt 0:02:30]} 20. a4 {[%emt 0:06:14]} b6 {[%emt 0:01:30]} 21. Bb5 {[%emt 0:02:17]} Qb7 {[%emt 0:01:30]} 22. Bd3 {[%emt 0:05:22]} Nf4 {[%emt 0:01:30]} 23. Bf1 {[%emt 0:01:23]} Ng6 {[%emt 0:01:30]} 24. g3 {[%emt 0:01:54]} Rac8 {[%emt 0:00:33]} 25. Kh2 {[%emt 0:02:47]} Qd7 {[%emt 0:02:18]} 26. Bb5 {[%emt 0:01:38]} Qb7 {[%emt 0:00:36]} 27. Rg1 {[%emt 0:02:08]} Bf5 {[%emt 0:01:08]} 28. c3 {[%emt 0:00:29]} Nf8 {[%emt 0:01:12]} 29. f4 {[%emt 0:01:26]} g4 {[%emt 0:01:06]} 30. Qe2 {[%emt 0:00:37]} gxh3 {[%emt 0:01:43]} 31. Ba6 {[%emt 0:00:08]} Qd7 {[%emt 0:00:27]} 32. Bxc8 {[%emt 0:00:30]} Rxc8 {[%emt 0:00:00]} 33. g4 {[%emt 0:00:17]} Bh7 {[%emt 0:00:00]} 34. Kxh3 {[%emt 0:00:58]} Ne6 {[%emt 0:00:29]} 35. Qe3 {[%emt 0:00:53]} f6 {[%emt 0:03:24]} 36. exf6 {[%emt 0:00:32]} exf6 {[%emt 0:02:38]} 37. Nf3 {[%emt 0:00:28]} Re8 {[%emt 0:00:44]} 38. Qd2 {[%emt 0:00:26]} Be4 {[%emt 0:00:33]} 39. Rcf1 {[%emt 0:00:35]} h5 {[%emt 0:01:31]} 40. Kg3 {[%emt 0:00:00]} hxg4 {[%emt 0:00:00]} 41. Nh4 {[%emt 0:05:58]} f5 {[%emt 0:02:38]} 42. Bxg7 {[%emt 0:03:30]} Nxg7 {[%emt 0:02:30]} 43. Kf2 {[%emt 0:06:44]} Nh5 {[%emt 0:01:30]} 44. Rd1 {[%emt 0:01:20]} Qh7 {[%emt 0:04:30]} 45. Ng2 {[%emt 0:01:51]} Nf6 {[%emt 0:09:30]} 46. Rh1 {[%emt 0:03:27]} Qf7 {[%emt 0:12:29]} 47. Rde1 {[%emt 0:04:39]} Bf3 {[%emt 0:03:59]} 48. Qd4 {[%emt 0:03:25]} Rxe1 {[%emt 0:00:42]} 49. Rxe1 {[%emt 0:00:36]} Ne4+ {[%emt 0:01:35]} 50. Kg1 {[%emt 0:01:24]} Ng3 {[%emt 0:02:44]} 51. Qe5 {[%emt 0:01:35]} Be4 {[%emt 0:01:57]} 52. Kf2 {[%emt 0:01:22]} Qh5 {[%emt 0:00:55]} 53. Qe6+ {[%emt 0:01:11]} Kh7 {[%emt 0:00:34]} 54. Qe7+ {[%emt 0:00:14]} Kg8 {[%emt 0:00:06]} 55. Qd8+ {[%emt 0:00:13]} Kf7 {[%emt 0:01:03]} 56. Qd7+ {[%emt 0:01:09]} Kf8 {[%emt 0:00:41]} 57. Qd8+ {[%emt 0:00:33]} Kf7 {[%emt 0:00:06]} 58. Qc7+ {[%emt 0:00:07]} Kf8 {[%emt 0:00:30]} 59. Qb8+ {[%emt 0:00:30]} Kf7 {[%emt 0:00:30]} 60. Qxa7+ {[%emt 0:00:00]} Kf8 {[%emt 0:00:04]} 61. Qb8+ {[%emt 0:00:04]} Kf7 {[%emt 0:00:30]} 62. Qc7+ {[%emt 0:00:00]} Kf8 {[%emt 0:00:00]} 63. Qd8+ {[%emt 0:00:06]} Kf7 {[%emt 0:00:00]} 64. Qh4 {[%emt 0:01:23]} Qxh4 {[%emt 0:00:10]} 65. Nxh4 {[%emt 0:00:30]} Nh5 {[%emt 0:00:30]} 66. Ke3 {[%emt 0:00:00]} g3 {[%emt 0:00:21]} 67. Rg1 {[%emt 0:00:42]} Kf6 {[%emt 0:00:30]} 68. Nf3 {[%emt 0:00:01]} Ke7 {[%emt 0:00:21]} 69. Nd2 {[%emt 0:00:30]} Nf6 {[%emt 0:00:41]} 70. Rxg3 {[%emt 0:01:26]} Ng4+ {[%emt 0:00:18]} 71. Rxg4 {[%emt 0:00:11]} fxg4 {[%emt 0:00:30]} 72. Nxe4 {[%emt 0:00:30]} dxe4 {[%emt 0:00:30]} 73. Kxe4 {[%emt 0:00:46]} 1-0

[Event "TUR-chT Superleague 2018"]
[Site "Ankara"]
[Date "2018.07.25"]
[Round "1"]
[White "Onur, Cigdem"]
[Black "Balajayeva, Khanim"]
[Result "0-1"]
[ECO "D00"]
[WhiteElo "1750"]
[BlackElo "2332"]
[Annotator "NA"]
[PlyCount "120"]
[EventDate "2018.07.25"]
[EventType "team-tourn"]
[EventCountry "TUR"]
[SourceTitle "playchess.com"]
[Source "ChessBase"]
[SourceQuality "1"]
[TimeControl "40/5400+30:1800+30"]

1. d4 {[%emt 0:00:30]} d5 {[%emt 0:00:30]} 2. Bf4 {[%emt 0:00:00]} Nf6 {[%emt 0:00:30]} 3. e3 {[%emt 0:00:00]} c5 {[%emt 0:00:30]} 4. Nc3 {[%emt 0:00:00]} cxd4 {[%emt 0:03:30]} 5. Nb5 {[%emt 0:02:00]} Na6 {[%emt 0:01:30]} 6. exd4 {[%emt 0:06:30]} Bg4 {[%emt 0:20:30]} 7. Be2 {[%emt 0:15:30]} Bxe2 {[%emt 0:01:30]} 8. Qxe2 {[%emt 0:00:30]} e6 {[%emt 0:00:30]} 9. c3 {[%emt 0:05:30]} Be7 {[%emt 0:00:30]} 10. h3 {[%emt 0:03:30]} O-O {[%emt 0:02:30]} 11. Nf3 {[%emt 0:00:30]} Ne8 {[%emt 0:05:30]} 12. O-O {[%emt 0:07:30]} Nac7 {[%emt 0:00:30]} 13. Nxc7 {[%emt 0:03:30]} Nxc7 {[%emt 0:00:30]} 14. Ne5 {[%emt 0:00:30]} Ne8 {[%emt 0:06:30]} 15. Bh2 {[%emt 0:07:30]} Nd6 {[%emt 0:09:30]} 16. Rad1 {[%emt 0:02:30]} Rc8 {[%emt 0:01:30]} 17. Rd3 {[%emt 0:04:30]} Qa5 {[%emt 0:09:30]} 18. Ra1 {[%emt 0:05:30]} Qb5 {[%emt 0:08:30]} 19. Qc2 {[%emt 0:07:30]} Nc4 {[%emt 0:05:30]} 20. Nxc4 {[%emt 0:09:56]} Qxc4 {[%emt 0:00:00]} 21. Rdd1 {[%emt 0:03:53]} b5 {[%emt 0:01:47]} 22. a3 {[%emt 0:08:27]} a5 {[%emt 0:00:35]} 23. Qd2 {[%emt 0:02:56]} Rc6 {[%emt 0:03:12]} 24. Rac1 {[%emt 0:01:33]} Rfc8 {[%emt 0:01:01]} 25. Bf4 {[%emt 0:00:24]} Qb3 {[%emt 0:00:47]} 26. Qc2 {[%emt 0:01:18]} Qxc2 {[%emt 0:03:52]} 27. Rxc2 {[%emt 0:00:30]} b4 {[%emt 0:00:28]} 28. axb4 {[%emt 0:00:51]} axb4 {[%emt 0:00:02]} 29. Ra1 {[%emt 0:00:02]} h6 {[%emt 0:08:24]} 30. Bd2 {[%emt 0:00:43]} Bf6 {[%emt 0:03:07]} 31. Rcc1 {[%emt 0:00:49]} bxc3 {[%emt 0:00:08]} 32. bxc3 {[%emt 0:00:28]} Bg5 {[%emt 0:01:27]} 33. f4 {[%emt 0:00:32]} Bf6 {[%emt 0:00:30]} 34. Rcb1 {[%emt 0:00:32]} R6c7 {[%emt 0:01:32]} 35. Kf2 {[%emt 0:00:30]} g5 {[%emt 0:00:00]} 36. g3 {[%emt 0:00:12]} Kg7 {[%emt 0:00:03]} 37. Kf3 {[%emt 0:00:00]} Rxc3+ {[%emt 0:00:56]} 38. Bxc3 {[%emt 0:00:48]} Rxc3+ {[%emt 0:00:01]} 39. Kg2 {[%emt 0:00:48]} Rc2+ {[%emt 0:00:33]} 40. Kh1 {[%emt 0:00:00]} gxf4 {[%emt 0:00:00]} 41. gxf4 {[%emt 0:01:48]} Bxd4 {[%emt 0:01:35]} 42. Rc1 {[%emt 0:11:02]} Rf2 {[%emt 0:03:30]} 43. Rg1+ {[%emt 0:02:05]} Kf6 {[%emt 0:01:30]} 44. Raf1 {[%emt 0:04:33]} Rxf1 {[%emt 0:05:30]} 45. Rxf1 {[%emt 0:00:05]} Be3 {[%emt 0:00:30]} 46. Kg2 {[%emt 0:00:47]} Kf5 {[%emt 0:00:30]} 47. Kg3 {[%emt 0:00:44]} d4 {[%emt 0:00:30]} 48. h4 {[%emt 0:04:33]} h5 {[%emt 0:01:30]} 49. Rf3 {[%emt 0:07:39]} f6 {[%emt 0:01:30]} 50. Rf1 {[%emt 0:00:22]} Ke4 {[%emt 0:00:59]} 51. Re1 {[%emt 0:00:37]} d3 {[%emt 0:00:47]} 52. Rf1 {[%emt 0:00:17]} d2 {[%emt 0:00:00]} 53. Rd1 {[%emt 0:00:53]} Bxf4+ {[%emt 0:00:26]} 54. Kf2 {[%emt 0:00:41]} Kd3 {[%emt 0:00:30]} 55. Kf3 {[%emt 0:00:00]} Be5 {[%emt 0:00:46]} 56. Kf2 {[%emt 0:00:29]} Bd4+ {[%emt 0:00:03]} 57. Kf3 {[%emt 0:00:31]} e5 {[%emt 0:00:29]} 58. Rh1 {[%emt 0:01:07]} e4+ {[%emt 0:00:30]} 59. Kf4 {[%emt 0:00:30]} e3 {[%emt 0:00:00]} 60. Kf3 {[%emt 0:00:27]} e2 {[%emt 0:00:00]} 0-1

[Event "TUR-chT Superleague 2018"]
[Site "Ankara"]
[Date "2018.07.25"]
[Round "1"]
[White "Aydin, Gulenay"]
[Black "Yildiz Kadioglu, Betul Cemre"]
[Result "0-1"]
[ECO "B28"]
[WhiteElo "1732"]
[BlackElo "2323"]
[Annotator "NA"]
[PlyCount "124"]
[EventDate "2018.07.25"]
[EventType "team-tourn"]
[EventCountry "TUR"]
[SourceTitle "playchess.com"]
[Source "ChessBase"]
[SourceQuality "1"]
[TimeControl "40/5400+30:1800+30"]

1. e4 {[%emt 0:00:30]} c5 {[%emt 0:00:30]} 2. Nf3 {[%emt 0:00:30]} a6 {[%emt 0:00:00]} 3. c3 {[%emt 0:00:30]} d5 {[%emt 0:00:00]} 4. exd5 {[%emt 0:00:30]} Qxd5 {[%emt 0:00:00]} 5. d4 {[%emt 0:01:30]} Nf6 {[%emt 0:00:00]} 6. Bd3 {[%emt 0:01:30]} Bg4 {[%emt 0:04:30]} 7. O-O {[%emt 0:17:30]} Bxf3 {[%emt 0:02:30]} 8. Qxf3 {[%emt 0:00:30]} Qxf3 {[%emt 0:00:30]} 9. gxf3 {[%emt 0:00:30]} cxd4 {[%emt 0:00:30]} 10. cxd4 {[%emt 0:00:30]} Nc6 {[%emt 0:00:30]} 11. Be3 {[%emt 0:00:30]} e6 {[%emt 0:14:30]} 12. Rd1 {[%emt 0:03:30]} Be7 {[%emt 0:07:30]} 13. Nc3 {[%emt 0:00:30]} O-O {[%emt 0:00:30]} 14. Rac1 {[%emt 0:07:30]} Rfd8 {[%emt 0:08:30]} 15. Be4 {[%emt 0:08:30]} Nd5 {[%emt 0:05:30]} 16. Bxd5 {[%emt 0:09:30]} exd5 {[%emt 0:00:00]} 17. Na4 {[%emt 0:06:30]} Rd6 {[%emt 0:02:00]} 18. Kf1 {[%emt 0:09:30]} Re8 {[%emt 0:10:30]} 19. Nc5 {[%emt 0:08:30]} Nd8 {[%emt 0:05:30]} 20. Re1 {[%emt 0:07:47]} Rb6 {[%emt 0:06:30]} 21. b3 {[%emt 0:09:15]} Ne6 {[%emt 0:00:30]} 22. Nxe6 {[%emt 0:01:38]} fxe6 {[%emt 0:00:30]} 23. Bf4 {[%emt 0:03:09]} Bb4 {[%emt 0:04:30]} 24. Re2 {[%emt 0:00:42]} Rc6 {[%emt 0:00:30]} 25. Rxc6 {[%emt 0:00:33]} bxc6 {[%emt 0:00:00]} 26. Rc2 {[%emt 0:00:34]} Rc8 {[%emt 0:00:00]} 27. Ke2 {[%emt 0:00:57]} Kf7 {[%emt 0:00:30]} 28. Be5 {[%emt 0:00:10]} g6 {[%emt 0:00:30]} 29. Rc1 {[%emt 0:00:35]} Ke7 {[%emt 0:01:30]} 30. Bf4 {[%emt 0:00:30]} Kd7 {[%emt 0:00:30]} 31. Be5 {[%emt 0:00:30]} Rf8 {[%emt 0:00:30]} 32. Rc2 {[%emt 0:00:36]} Rf5 {[%emt 0:04:30]} 33. Rc1 {[%emt 0:00:29]} Rg5 {[%emt 0:02:30]} 34. Bf4 {[%emt 0:00:53]} Rh5 {[%emt 0:00:30]} 35. Bg3 {[%emt 0:00:06]} Be7 {[%emt 0:00:55]} 36. Rc2 {[%emt 0:00:26]} Rf5 {[%emt 0:01:37]} 37. Rc3 {[%emt 0:00:37]} Bd8 {[%emt 0:02:42]} 38. Rc2 {[%emt 0:00:29]} Bb6 {[%emt 0:00:43]} 39. Be5 {[%emt 0:00:30]} Ba7 {[%emt 0:00:06]} 40. b4 {[%emt 0:00:00]} Bb6 {[%emt 0:00:00]} 41. a3 {[%emt 0:10:34]} Rf8 {[%emt 0:03:27]} 42. Rc3 {[%emt 0:06:56]} Ra8 {[%emt 0:01:30]} 43. Rb3 {[%emt 0:06:20]} Bd8 {[%emt 0:04:30]} 44. f4 {[%emt 0:04:37]} Be7 {[%emt 0:07:30]} 45. a4 {[%emt 0:04:06]} Ra7 {[%emt 0:13:31]} 46. Kd3 {[%emt 0:00:31]} Rb7 {[%emt 0:00:31]} 47. Kc3 {[%emt 0:00:17]} Ke8 {[%emt 0:02:03]} 48. Rb2 {[%emt 0:01:11]} Kf7 {[%emt 0:00:11]} 49. Rb3 {[%emt 0:00:23]} h6 {[%emt 0:00:17]} 50. Rb2 {[%emt 0:00:18]} Bf8 {[%emt 0:01:31]} 51. Rb3 {[%emt 0:00:41]} g5 {[%emt 0:02:24]} 52. fxg5 {[%emt 0:00:30]} hxg5 {[%emt 0:00:00]} 53. f4 {[%emt 0:00:23]} g4 {[%emt 0:00:52]} 54. Rb2 {[%emt 0:00:20]} Kg6 {[%emt 0:00:00]} 55. Rb1 {[%emt 0:01:04]} Kf5 {[%emt 0:00:05]} 56. Rb2 {[%emt 0:00:02]} Rh7 {[%emt 0:00:59]} 57. Rg2 {[%emt 0:00:36]} Rh3+ {[%emt 0:01:46]} 58. Kb2 {[%emt 0:00:56]} Bxb4 {[%emt 0:00:17]} 59. Rc2 {[%emt 0:00:18]} a5 {[%emt 0:00:08]} 60. Kb1 {[%emt 0:00:22]} Bc3 {[%emt 0:04:24]} 61. Kc1 {[%emt 0:00:54]} Rd3 {[%emt 0:00:30]} 62. Re2 {[%emt 0:00:09]} Bxd4 {[%emt 0:03:23]} 0-1

[Event "TUR-chT Superleague 2018"]
[Site "Ankara"]
[Date "2018.07.25"]
[Round "1"]
[White "Keskin, Elif"]
[Black "Celik, Eda"]
[Result "0-1"]
[ECO "A61"]
[WhiteElo "1719"]
[BlackElo "1864"]
[Annotator "NA"]
[PlyCount "72"]
[EventDate "2018.07.25"]
[EventType "team-tourn"]
[EventCountry "TUR"]
[SourceTitle "playchess.com"]
[Source "ChessBase"]
[SourceQuality "1"]
[TimeControl "40/5400+30:1800+30"]

1. d4 {[%emt 0:00:30]} Nf6 {[%emt 0:00:30]} 2. c4 {[%emt 0:00:30]} c5 {[%emt 0:00:30]} 3. d5 {[%emt 0:00:30]} e6 {[%emt 0:00:00]} 4. Nc3 {[%emt 0:00:00]} exd5 {[%emt 0:00:00]} 5. cxd5 {[%emt 0:00:00]} d6 {[%emt 0:00:30]} 6. Nf3 {[%emt 0:00:30]} g6 {[%emt 0:00:30]} 7. Bf4 {[%emt 0:00:30]} a6 {[%emt 0:00:30]} 8. a4 {[%emt 0:00:30]} Bg7 {[%emt 0:00:00]} 9. h3 {[%emt 0:00:00]} O-O {[%emt 0:00:00]} 10. e3 {[%emt 0:00:00]} Ne8 {[%emt 0:00:00]} 11. Be2 {[%emt 0:02:30]} Nd7 {[%emt 0:00:00]} 12. O-O {[%emt 0:01:30]} b6 {[%emt 0:00:00]} 13. Nd2 {[%emt 0:03:30]} Ne5 {[%emt 0:01:00]} 14. Qb3 {[%emt 0:03:30]} Rb8 {[%emt 0:06:30]} 15. Rfd1 {[%emt 0:05:30]} Nc7 {[%emt 0:05:30]} 16. Nce4 {[%emt 0:09:30]} b5 {[%emt 0:16:30]} 17. Bxe5 {[%emt 0:07:30]} Bxe5 {[%emt 0:01:30]} 18. Nc4 {[%emt 0:04:30]} Bf5 {[%emt 0:19:30]} 19. Nxe5 {[%emt 0:06:30]} Bxe4 {[%emt 0:04:30]} 20. Nc6 {[%emt 0:21:30]} Qg5 {[%emt 0:00:30]} 21. f3 {[%emt 0:04:30]} Bxd5 {[%emt 0:07:30]} 22. Rxd5 {[%emt 0:01:30]} Nxd5 {[%emt 0:00:30]} 23. Qxd5 {[%emt 0:13:24]} Qxe3+ {[%emt 0:02:30]} 24. Kh1 {[%emt 0:00:33]} Qxe2 {[%emt 0:04:30]} 25. Nxb8 {[%emt 0:00:16]} Qxb2 {[%emt 0:01:30]} 26. Re1 {[%emt 0:03:07]} Rxb8 {[%emt 0:00:30]} 27. Qxd6 {[%emt 0:00:16]} bxa4 {[%emt 0:01:30]} 28. Qxc5 {[%emt 0:09:32]} a3 {[%emt 0:01:30]} 29. Qa5 {[%emt 0:01:12]} a2 {[%emt 0:01:30]} 30. Kh2 {[%emt 0:00:41]} Qf2 {[%emt 0:10:10]} 31. Rd1 {[%emt 0:00:42]} Qe2 {[%emt 0:05:56]} 32. Rd8+ {[%emt 0:01:04]} Rxd8 {[%emt 0:00:30]} 33. Qxd8+ {[%emt 0:00:30]} Kg7 {[%emt 0:00:00]} 34. Qd4+ {[%emt 0:00:00]} f6 {[%emt 0:06:15]} 35. f4 {[%emt 0:00:22]} Qf1 {[%emt 0:01:18]} 36. Qd7+ {[%emt 0:00:43]} Kh6 {[%emt 0:00:48]} 0-1

[Event "TUR-chT Superleague 2018"]
[Site "Ankara"]
[Date "2018.07.25"]
[Round "1"]
[White "Ozcan, Kaan"]
[Black "Demircioglu, Emre"]
[Result "1/2-1/2"]
[ECO "E11"]
[WhiteElo "1523"]
[BlackElo "2244"]
[Annotator "NA"]
[PlyCount "139"]
[EventDate "2018.07.25"]
[EventType "team-tourn"]
[EventCountry "TUR"]
[SourceTitle "playchess.com"]
[Source "ChessBase"]
[SourceQuality "1"]
[TimeControl "40/5400+30:1800+30"]

1. c4 {[%emt 0:00:30]} Nf6 {[%emt 0:01:30]} 2. d4 {[%emt 0:00:30]} e6 {[%emt 0:00:00]} 3. Nf3 {[%emt 0:00:30]} d5 {[%emt 0:00:00]} 4. g3 {[%emt 0:00:30]} Bb4+ {[%emt 0:03:30]} 5. Bd2 {[%emt 0:01:30]} Be7 {[%emt 0:00:30]} 6. Bg2 {[%emt 0:00:30]} O-O {[%emt 0:00:30]} 7. O-O {[%emt 0:01:30]} c6 {[%emt 0:00:30]} 8. cxd5 {[%emt 0:02:30]} exd5 {[%emt 0:02:30]} 9. Nc3 {[%emt 0:02:30]} Na6 {[%emt 0:09:30]} 10. a3 {[%emt 0:04:30]} Re8 {[%emt 0:04:30]} 11. Qc2 {[%emt 0:01:30]} g6 {[%emt 0:01:30]} 12. Bg5 {[%emt 0:03:30]} Bf5 {[%emt 0:01:30]} 13. Qd2 {[%emt 0:01:30]} Nc7 {[%emt 0:05:30]} 14. e3 {[%emt 0:05:30]} Ne6 {[%emt 0:05:30]} 15. Bxf6 {[%emt 0:03:30]} Bxf6 {[%emt 0:00:30]} 16. Rac1 {[%emt 0:00:30]} Ng7 {[%emt 0:03:30]} 17. Na4 {[%emt 0:04:30]} Bc8 {[%emt 0:04:30]} 18. Nc5 {[%emt 0:03:30]} Nf5 {[%emt 0:00:30]} 19. b4 {[%emt 0:03:30]} Nd6 {[%emt 0:00:30]} 20. Qa2 {[%emt 0:06:30]} a5 {[%emt 0:09:30]} 21. Qc2 {[%emt 0:08:30]} Nc4 {[%emt 0:05:30]} 22. Ra1 {[%emt 0:04:30]} b6 {[%emt 0:10:30]} 23. Nd3 {[%emt 0:04:30]} Bf5 {[%emt 0:04:30]} 24. Qc3 {[%emt 0:04:30]} Qd6 {[%emt 0:03:30]} 25. Nb2 {[%emt 0:05:30]} b5 {[%emt 0:02:30]} 26. Nd2 {[%emt 0:07:27]} axb4 {[%emt 0:05:41]} 27. axb4 {[%emt 0:00:51]} Be7 {[%emt 0:00:17]} 28. Nbxc4 {[%emt 0:03:28]} bxc4 {[%emt 0:00:28]} 29. e4 {[%emt 0:04:49]} Be6 {[%emt 0:02:50]} 30. Rxa8 {[%emt 0:06:43]} Rxa8 {[%emt 0:00:05]} 31. exd5 {[%emt 0:01:10]} cxd5 {[%emt 0:00:22]} 32. b5 {[%emt 0:04:18]} Ra3 {[%emt 0:07:04]} 33. Qc1 {[%emt 0:00:37]} Qb6 {[%emt 0:02:11]} 34. Re1 {[%emt 0:00:31]} Bf8 {[%emt 0:02:08]} 35. Nf3 {[%emt 0:00:24]} Qxb5 {[%emt 0:01:48]} 36. Ng5 {[%emt 0:00:27]} Ra6 {[%emt 0:01:57]} 37. Nxe6 {[%emt 0:00:16]} Rxe6 {[%emt 0:00:00]} 38. Rxe6 {[%emt 0:00:28]} fxe6 {[%emt 0:00:26]} 39. Bh3 {[%emt 0:00:30]} Qd7 {[%emt 0:00:30]} 40. Qe3 {[%emt 0:00:30]} Kf7 {[%emt 0:00:00]} 41. Qf4+ {[%emt 0:00:31]} Ke8 {[%emt 0:03:13]} 42. Qe3 {[%emt 0:02:30]} Qe7 {[%emt 0:09:30]} 43. Kf1 {[%emt 0:05:30]} Kf7 {[%emt 0:05:32]} 44. Ke2 {[%emt 0:04:30]} Bg7 {[%emt 0:00:28]} 45. Qf3+ {[%emt 0:05:38]} Bf6 {[%emt 0:00:29]} 46. Qe3 {[%emt 0:02:01]} e5 {[%emt 0:02:39]} 47. dxe5 {[%emt 0:02:23]} Qxe5 {[%emt 0:00:07]} 48. Qxe5 {[%emt 0:01:08]} Bxe5 {[%emt 0:00:30]} 49. f4 {[%emt 0:00:47]} Bd4 {[%emt 0:00:18]} 50. Bg2 {[%emt 0:01:00]} Ke6 {[%emt 0:00:26]} 51. g4 {[%emt 0:00:43]} Kd6 {[%emt 0:02:55]} 52. h4 {[%emt 0:01:50]} Bb2 {[%emt 0:00:49]} 53. Bf3 {[%emt 0:02:13]} Bc1 {[%emt 0:00:14]} 54. f5 {[%emt 0:00:14]} gxf5 {[%emt 0:00:37]} 55. gxf5 {[%emt 0:00:06]} Ke5 {[%emt 0:00:55]} 56. f6 {[%emt 0:00:58]} d4 {[%emt 0:00:30]} 57. Kd1 {[%emt 0:01:23]} Ba3 {[%emt 0:00:29]} 58. Kc2 {[%emt 0:00:40]} Kxf6 {[%emt 0:09:18]} 59. Be2 {[%emt 0:03:09]} Kf5 {[%emt 0:00:23]} 60. Bxc4 {[%emt 0:00:10]} Kg4 {[%emt 0:00:30]} 61. Kd3 {[%emt 0:00:30]} Bb2 {[%emt 0:00:30]} 62. Ke2 {[%emt 0:00:30]} Kxh4 {[%emt 0:00:30]} 63. Kf1 {[%emt 0:00:25]} Kg3 {[%emt 0:00:00]} 64. Kg1 {[%emt 0:00:15]} h5 {[%emt 0:00:38]} 65. Kh1 {[%emt 0:00:30]} Ba3 {[%emt 0:00:30]} 66. Bd3 {[%emt 0:00:30]} h4 {[%emt 0:00:56]} 67. Bc4 {[%emt 0:00:26]} Bd6 {[%emt 0:00:30]} 68. Bb5 {[%emt 0:00:00]} h3 {[%emt 0:00:43]} 69. Bc4 {[%emt 0:00:26]} Kf2 {[%emt 0:00:30]} 70. Bb5 {[%emt 0:00:30]} 1/2-1/2